[Event "XVI Calvia Amateur Open 2019"]
[Site "Calvia"]
[Date "2019.10.07"]
[Round "3.6"]
[White "Romero Leon, Antonio"]
[Black "Voiteanu, Gabriel"]
[Result "0-1"]
[ECO "C69"]
[WhiteElo "2015"]
[BlackElo "2119"]
[Annotator "ChessBase"]
[PlyCount "79"]
[EventDate "2019.10.05"]
[EventType "swiss"]
[EventCountry "ESP"]
[SourceTitle "playchess.com"]
[Source "ChessBase"]
[SourceQuality "1"]
[TimeControl "40/5400+30:900+30"]

1. e4 {[%emt 0:02:28]} e5 {[%emt 0:00:00]} 2. Nf3 {[%emt 0:00:13]} Nc6 {[%emt 0:00:00]} 3. Bb5 {[%emt 0:00:34]} a6 {[%emt 0:00:00]} 4. Bxc6 {[%emt 0:00:31]} dxc6 {[%emt 0:00:11]} 5. O-O {[%emt 0:00:29]} f6 {[%emt 0:05:32]} 6. d3 {[%emt 0:06:13]} Bg4 {[%emt 0:03:12]} 7. Be3 {[%emt 0:00:44]} c5 {[%emt 0:04:02]} 8. Nbd2 {[%emt 0:00:27]} Bd6 {[%emt 0:03:56]} 9. h3 {[%emt 0:04:03]} Bh5 {[%emt 0:01:09]} 10. Re1 {[%emt 0:00:49]} Ne7 {[%emt 0:01:34]} 11. Nf1 {[%emt 0:00:40]} O-O {[%emt 0:11:36]} 12. Ng3 {[%emt 0:00:26]} Bf7 {[%emt 0:00:35]} 13. Qd2 {[%emt 0:04:19]} c4 {[%emt 0:06:13]} 14. dxc4 {[%emt 0:02:05]} Bxc4 {[%emt 0:00:50]} 15. b3 {[%emt 0:01:26]} Be6 {[%emt 0:01:24]} 16. c4 {[%emt 0:00:38]} b6 {[%emt 0:07:34]} 17. Red1 {[%emt 0:01:09]} Qb8 {[%emt 0:01:36]} 18. Qc3 {[%emt 0:10:13]} c5 {[%emt 0:06:43]} 19. Nh4 {[%emt 0:04:39]} g6 {[%emt 0:06:53]} 20. Bh6 {[%emt 0:01:39]} Rf7 {[%emt 0:06:25]} 21. Qd2 {[%emt 0:04:36]} Bc7 {[%emt 0:00:50]} 22. Nf1 {[%emt 0:05:16]} Nc6 {[%emt 0:13:57]} 23. Ne3 {[%emt 0:00:32]} Nd4 {[%emt 0:00:40]} 24. Nc2 {[%emt 0:09:52]} b5 {[%emt 0:08:53]} 25. Nxd4 {[%emt 0:01:41]} exd4 {[%emt 0:01:55]} 26. cxb5 {[%emt 0:00:20]} axb5 {[%emt 0:00:07]} 27. Rac1 {[%emt 0:00:44]} c4 {[%emt 0:02:41]} 28. bxc4 {[%emt 0:01:19]} bxc4 {[%emt 0:00:45]} 29. Qxd4 {[%emt 0:01:19]} Rxa2 {[%emt 0:00:18]} 30. Rb1 {[%emt 0:06:29]} Qe8 {[%emt 0:00:51]} 31. Nf3 {[%emt 0:02:22]} Ra8 {[%emt 0:02:59]} 32. Qc3 {[%emt 0:07:14]} Rd8 {[%emt 0:01:14]} 33. Rxd8 {[%emt 0:01:01]} Qxd8 {[%emt 0:00:04]} 34. g3 {[%emt 0:07:00]} Rd7 {[%emt 0:00:30]} 35. Kg2 {[%emt 0:00:51]} Rd3 {[%emt 0:00:22]} 36. Qc2 {[%emt 0:00:38]} g5 {[%emt 0:00:51]} 37. g4 {[%emt 0:00:34]} Qd6 {[%emt 0:00:59]} 38. Re1 {[%emt 0:02:05]} Qf4 {[%emt 0:00:33]} 39. Qe2 {[%emt 0:00:35]} Bxg4 {[%emt 0:00:24]} 40. Kg1 {[%emt 0:01:43]} 0-1

[Event "XVI Calvia Amateur Open 2019"]
[Site "Calvia"]
[Date "2019.10.10"]
[Round "6.1"]
[White "Voiteanu, Gabriel"]
[Black "Ermachenko, Manuel"]
[Result "1-0"]
[ECO "D95"]
[WhiteElo "2119"]
[BlackElo "1968"]
[Annotator "ChessBase"]
[PlyCount "117"]
[EventDate "2019.10.05"]
[EventType "swiss"]
[EventCountry "ESP"]
[SourceTitle "playchess.com"]
[Source "ChessBase"]
[SourceQuality "1"]
[TimeControl "40/5400+30:900+30"]

1. d4 {[%emt 0:00:00]} Nf6 {[%emt 0:00:00]} 2. c4 {[%emt 0:00:00]} g6 {[%emt 0:00:00]} 3. Nc3 {[%emt 0:00:00]} d5 {[%emt 0:00:00]} 4. Nf3 {[%emt 0:00:24]} Bg7 {[%emt 0:00:00]} 5. e3 {[%emt 0:00:29]} O-O {[%emt 0:00:22]} 6. Qb3 {[%emt 0:00:23]} e6 {[%emt 0:02:10]} 7. Bd2 {[%emt 0:01:10]} Nc6 {[%emt 0:01:27]} 8. cxd5 {[%emt 0:00:33]} exd5 {[%emt 0:04:54]} 9. Be2 {[%emt 0:00:28]} b6 {[%emt 0:04:46]} 10. O-O {[%emt 0:04:35]} Na5 {[%emt 0:03:14]} 11. Qa4 {[%emt 0:05:24]} Bd7 {[%emt 0:07:29]} 12. Qd1 {[%emt 0:04:00]} Bf5 {[%emt 0:05:49]} 13. Ne5 {[%emt 0:10:24]} Nd7 {[%emt 0:07:11]} 14. f4 {[%emt 0:16:45]} Nxe5 {[%emt 0:08:31]} 15. fxe5 {[%emt 0:04:36]} Be6 {[%emt 0:07:00]} 16. b3 {[%emt 0:02:37]} Qe7 {[%emt 0:04:50]} 17. Bf3 {[%emt 0:08:11]} Rad8 {[%emt 0:00:24]} 18. Ne2 {[%emt 0:02:01]} Nb7 {[%emt 0:03:43]} 19. Nf4 {[%emt 0:03:21]} c5 {[%emt 0:04:37]} 20. Nxe6 {[%emt 0:13:49]} fxe6 {[%emt 0:00:14]} 21. Qe1 {[%emt 0:03:14]} Bh6 {[%emt 0:02:25]} 22. Rd1 {[%emt 0:01:38]} Rf7 {[%emt 0:02:25]} 23. Qg3 {[%emt 0:00:44]} cxd4 {[%emt 0:01:25]} 24. exd4 {[%emt 0:00:32]} Bxd2 {[%emt 0:00:06]} 25. Rxd2 {[%emt 0:00:05]} Rdf8 {[%emt 0:01:21]} 26. Be2 {[%emt 0:06:28]} Rxf1+ {[%emt 0:00:18]} 27. Bxf1 {[%emt 0:00:02]} Qb4 {[%emt 0:01:01]} 28. Rd1 {[%emt 0:03:02]} Nd8 {[%emt 0:01:38]} 29. Qg4 {[%emt 0:04:18]} Qa3 {[%emt 0:01:31]} 30. Qe2 {[%emt 0:02:35]} Nc6 {[%emt 0:04:41]} 31. Qd2 {[%emt 0:02:09]} a6 {[%emt 0:08:08]} 32. Bd3 {[%emt 0:01:06]} Nxd4 {[%emt 0:05:39]} 33. Bxg6 {[%emt 0:00:53]} hxg6 {[%emt 0:00:14]} 34. Qxd4 {[%emt 0:00:08]} Qc5 {[%emt 0:01:25]} 35. Qxc5 {[%emt 0:00:38]} bxc5 {[%emt 0:00:08]} 36. Rc1 {[%emt 0:00:25]} Rc8 {[%emt 0:01:18]} 37. Kf2 {[%emt 0:00:10]} g5 {[%emt 0:00:05]} 38. Ke3 {[%emt 0:00:30]} Kf7 {[%emt 0:01:01]} 39. Kd3 {[%emt 0:00:36]} Ke7 {[%emt 0:00:26]} 40. h3 {[%emt 0:00:00]} a5 {[%emt 0:00:00]} 41. Rf1 {[%emt 0:02:48]} Rg8 {[%emt 0:02:30]} 42. Rf6 {[%emt 0:05:22]} Rg7 {[%emt 0:02:41]} 43. Rh6 {[%emt 0:04:22]} Kf7 {[%emt 0:02:06]} 44. Ke3 {[%emt 0:01:37]} g4 {[%emt 0:01:45]} 45. h4 {[%emt 0:01:05]} g3 {[%emt 0:00:52]} 46. Kf4 {[%emt 0:00:52]} d4 {[%emt 0:02:32]} 47. Rf6+ {[%emt 0:01:06]} Ke7 {[%emt 0:00:07]} 48. h5 {[%emt 0:00:25]} Rf7 {[%emt 0:01:31]} 49. Rxf7+ {[%emt 0:00:44]} Kxf7 {[%emt 0:00:08]} 50. Kxg3 {[%emt 0:00:11]} Kg7 {[%emt 0:00:38]} 51. Kf4 {[%emt 0:00:17]} Kh6 {[%emt 0:00:10]} 52. g4 {[%emt 0:00:07]} Kg7 {[%emt 0:00:13]} 53. g5 {[%emt 0:00:16]} Kh7 {[%emt 0:00:05]} 54. g6+ {[%emt 0:01:06]} Kh6 {[%emt 0:00:05]} 55. Ke4 {[%emt 0:00:06]} Kg7 {[%emt 0:00:04]} 56. Kd3 {[%emt 0:00:14]} Kh6 {[%emt 0:00:05]} 57. Kc4 {[%emt 0:00:05]} Kg7 {[%emt 0:00:08]} 58. a3 {[%emt 0:00:17]} Kh6 {[%emt 0:00:04]} 59. b4 {[%emt 0:00:10]} 1-0

[Event "XVI Calvia Amateur Open 2019"]
[Site "Calvia"]
[Date "2019.10.10"]
[Round "6.2"]
[White "Hlavacek, Tomas"]
[Black "Reichmann, Hendrik"]
[Result "0-1"]
[ECO "B41"]
[WhiteElo "2157"]
[BlackElo "2341"]
[Annotator "ChessBase"]
[PlyCount "104"]
[EventDate "2019.10.05"]
[EventType "swiss"]
[EventCountry "ESP"]
[SourceTitle "playchess.com"]
[Source "ChessBase"]
[SourceQuality "1"]
[TimeControl "40/5400+30:900+30"]

1. e4 {[%emt 0:00:00]} c5 {[%emt 0:00:00]} 2. Ne2 {[%emt 0:00:35]} e6 {[%emt 0:00:08]} 3. c4 {[%emt 0:00:40]} Nc6 {[%emt 0:02:28]} 4. Nbc3 {[%emt 0:03:09]} a6 {[%emt 0:02:30]} 5. d4 {[%emt 0:01:37]} cxd4 {[%emt 0:00:09]} 6. Nxd4 {[%emt 0:00:02]} Qc7 {[%emt 0:07:27]} 7. Be3 {[%emt 0:04:02]} Nf6 {[%emt 0:05:08]} 8. f3 {[%emt 0:03:13]} Bd6 {[%emt 0:03:01]} 9. g3 {[%emt 0:05:14]} Bb4 {[%emt 0:19:21]} 10. Rc1 {[%emt 0:12:41]} Ne5 {[%emt 0:20:30]} 11. a3 {[%emt 0:05:37]} Be7 {[%emt 0:00:51]} 12. Qb3 {[%emt 0:04:05]} d6 {[%emt 0:01:41]} 13. Be2 {[%emt 0:01:36]} b6 {[%emt 0:02:51]} 14. Kf2 {[%emt 0:01:10]} Rb8 {[%emt 0:02:19]} 15. Rhd1 {[%emt 0:01:21]} Bb7 {[%emt 0:01:48]} 16. Qa4+ {[%emt 0:02:23]} Kf8 {[%emt 0:00:50]} 17. Nc2 {[%emt 0:08:08]} Ned7 {[%emt 0:02:50]} 18. Nb4 {[%emt 0:02:56]} Nc5 {[%emt 0:03:49]} 19. Qc2 {[%emt 0:00:10]} g5 {[%emt 0:01:55]} 20. Nd3 {[%emt 0:04:42]} Ncd7 {[%emt 0:02:08]} 21. Qd2 {[%emt 0:03:31]} g4 {[%emt 0:01:35]} 22. Bh6+ {[%emt 0:02:53]} Ke8 {[%emt 0:00:13]} 23. Qf4 {[%emt 0:02:02]} gxf3 {[%emt 0:01:07]} 24. Bxf3 {[%emt 0:00:35]} Rg8 {[%emt 0:01:09]} 25. g4 {[%emt 0:01:52]} Ne5 {[%emt 0:02:38]} 26. g5 {[%emt 0:06:55]} Nxd3+ {[%emt 0:06:42]} 27. Rxd3 {[%emt 0:00:01]} Nd7 {[%emt 0:00:11]} 28. Bh5 {[%emt 0:02:40]} Ne5 {[%emt 0:00:06]} 29. Rf3 {[%emt 0:04:58]} Bf8 {[%emt 0:03:38]} 30. Bxf8 {[%emt 0:03:31]} Rxf8 {[%emt 0:00:02]} 31. Re3 {[%emt 0:02:08]} Qc5 {[%emt 0:00:37]} 32. Kg3 {[%emt 0:02:58]} Nxc4 {[%emt 0:00:54]} 33. Re2 {[%emt 0:01:23]} Qe5 {[%emt 0:00:22]} 34. Rf2 {[%emt 0:01:17]} Qxf4+ {[%emt 0:00:36]} 35. Rxf4 {[%emt 0:00:12]} Ne5 {[%emt 0:00:17]} 36. Rd1 {[%emt 0:01:15]} Ke7 {[%emt 0:00:10]} 37. h4 {[%emt 0:01:02]} Bc6 {[%emt 0:01:55]} 38. Be2 {[%emt 0:01:14]} b5 {[%emt 0:00:09]} 39. Rf2 {[%emt 0:01:28]} h6 {[%emt 0:00:38]} 40. gxh6 {[%emt 0:00:00]} Rh8 {[%emt 0:00:00]} 41. Bf1 {[%emt 0:01:28]} Rbg8+ {[%emt 0:00:36]} 42. Kh3 {[%emt 0:01:23]} Rxh6 {[%emt 0:00:38]} 43. Be2 {[%emt 0:01:19]} Ng6 {[%emt 0:01:22]} 44. h5 {[%emt 0:00:48]} e5 {[%emt 0:01:54]} 45. Kh2 {[%emt 0:03:18]} Nf4 {[%emt 0:00:42]} 46. Kh1 {[%emt 0:01:13]} Rg5 {[%emt 0:04:26]} 47. Nd5+ {[%emt 0:03:12]} Bxd5 {[%emt 0:00:06]} 48. exd5 {[%emt 0:00:05]} Nxe2 {[%emt 0:00:06]} 49. Rxe2 {[%emt 0:00:10]} Rgxh5+ {[%emt 0:00:05]} 50. Kg2 {[%emt 0:00:15]} Rh2+ {[%emt 0:00:04]} 51. Kf3 {[%emt 0:00:35]} R6h3+ {[%emt 0:00:05]} 52. Kg4 {[%emt 0:00:12]} f5+ {[%emt 0:00:07]} 0-1

[Event "XVI Calvia Amateur Open 2019"]
[Site "Calvia"]
[Date "2019.10.10"]
[Round "6.3"]
[White "Zschischang, Marine"]
[Black "Scherer, Helmut"]
[Result "1/2-1/2"]
[ECO "D20"]
[WhiteElo "2052"]
[BlackElo "2278"]
[Annotator "ChessBase"]
[PlyCount "87"]
[EventDate "2019.10.05"]
[EventType "swiss"]
[EventCountry "ESP"]
[SourceTitle "playchess.com"]
[Source "ChessBase"]
[SourceQuality "1"]
[TimeControl "40/5400+30:900+30"]

1. d4 {[%emt 0:00:00]} d5 {[%emt 0:00:24]} 2. c4 {[%emt 0:00:00]} dxc4 {[%emt 0:00:40]} 3. e3 {[%emt 0:00:00]} e5 {[%emt 0:00:48]} 4. Bxc4 {[%emt 0:00:08]} exd4 {[%emt 0:01:33]} 5. exd4 {[%emt 0:00:02]} Bd6 {[%emt 0:07:48]} 6. Nf3 {[%emt 0:00:43]} Nf6 {[%emt 0:05:53]} 7. O-O {[%emt 0:01:36]} O-O {[%emt 0:00:11]} 8. Bg5 {[%emt 0:01:59]} Nbd7 {[%emt 0:03:51]} 9. Nc3 {[%emt 0:01:27]} c6 {[%emt 0:03:07]} 10. Re1 {[%emt 0:01:25]} Nb6 {[%emt 0:19:50]} 11. Bb3 {[%emt 0:02:42]} Bf5 {[%emt 0:12:02]} 12. Ne5 {[%emt 0:02:11]} Be6 {[%emt 0:02:53]} 13. Bc2 {[%emt 0:05:00]} Be7 {[%emt 0:05:37]} 14. Qd3 {[%emt 0:02:09]} g6 {[%emt 0:00:26]} 15. Qf3 {[%emt 0:02:54]} Nbd5 {[%emt 0:04:40]} 16. Rad1 {[%emt 0:06:56]} Re8 {[%emt 0:02:37]} 17. Bh6 {[%emt 0:15:11]} Qc8 {[%emt 0:06:33]} 18. h3 {[%emt 0:02:20]} Bf8 {[%emt 0:00:55]} 19. Bxf8 {[%emt 0:02:53]} Rxf8 {[%emt 0:00:30]} 20. a3 {[%emt 0:04:43]} Kg7 {[%emt 0:01:28]} 21. g4 {[%emt 0:07:10]} Nxc3 {[%emt 0:06:40]} 22. bxc3 {[%emt 0:01:22]} Bd5 {[%emt 0:00:08]} 23. Qg3 {[%emt 0:01:19]} b5 {[%emt 0:00:13]} 24. Bd3 {[%emt 0:06:07]} Qc7 {[%emt 0:01:02]} 25. c4 {[%emt 0:01:55]} bxc4 {[%emt 0:00:54]} 26. Nxc4 {[%emt 0:00:32]} Qd8 {[%emt 0:05:56]} 27. Qf4 {[%emt 0:03:18]} Rb8 {[%emt 0:00:41]} 28. Rb1 {[%emt 0:00:32]} Rxb1 {[%emt 0:02:07]} 29. Rxb1 {[%emt 0:00:28]} Qe7 {[%emt 0:00:21]} 30. g5 {[%emt 0:06:05]} Nh5 {[%emt 0:00:11]} 31. Qe5+ {[%emt 0:06:31]} Qxe5 {[%emt 0:00:08]} 32. Nxe5 {[%emt 0:00:22]} Re8 {[%emt 0:01:12]} 33. Bf1 {[%emt 0:06:33]} Nf4 {[%emt 0:01:09]} 34. Rb7 {[%emt 0:04:07]} c5 {[%emt 0:01:12]} 35. Rxa7 {[%emt 0:00:24]} cxd4 {[%emt 0:00:08]} 36. Nd3 {[%emt 0:00:56]} Ne6 {[%emt 0:01:08]} 37. h4 {[%emt 0:01:42]} Rb8 {[%emt 0:01:57]} 38. Bg2 {[%emt 0:02:08]} Ba2 {[%emt 0:00:42]} 39. Rd7 {[%emt 0:00:46]} Rb3 {[%emt 0:01:09]} 40. Ne5 {[%emt 0:00:00]} Rxa3 {[%emt 0:00:00]} 41. Rxf7+ {[%emt 0:03:04]} Kg8 {[%emt 0:00:52]} 42. Rd7 {[%emt 0:00:20]} Ra4 {[%emt 0:03:14]} 43. Ng4 {[%emt 0:11:49]} Nf8 {[%emt 0:00:26]} 44. Bd5+ {[%emt 0:02:54]} 1/2-1/2

[Event "XVI Calvia Amateur Open 2019"]
[Site "Calvia"]
[Date "2019.10.10"]
[Round "6.4"]
[White "Massanet Massanet, Sebastian"]
[Black "Cramling Bellon, Anna"]
[Result "1/2-1/2"]
[ECO "B33"]
[WhiteElo "2252"]
[BlackElo "2164"]
[Annotator "ChessBase"]
[PlyCount "80"]
[EventDate "2019.10.05"]
[EventType "swiss"]
[EventCountry "ESP"]
[SourceTitle "playchess.com"]
[Source "ChessBase"]
[SourceQuality "1"]
[TimeControl "40/5400+30:900+30"]

1. e4 {[%emt 0:19:36]} c5 {[%emt 0:00:00]} 2. Nf3 {[%emt 0:00:06]} Nc6 {[%emt 0:00:00]} 3. d4 {[%emt 0:00:20]} cxd4 {[%emt 0:00:00]} 4. Nxd4 {[%emt 0:00:04]} Nf6 {[%emt 0:00:02]} 5. Nc3 {[%emt 0:00:32]} e5 {[%emt 0:00:19]} 6. Ndb5 {[%emt 0:01:01]} h6 {[%emt 0:00:12]} 7. Nd5 {[%emt 0:08:57]} Nxd5 {[%emt 0:00:10]} 8. exd5 {[%emt 0:00:08]} a6 {[%emt 0:00:11]} 9. dxc6 {[%emt 0:02:12]} axb5 {[%emt 0:00:09]} 10. cxd7+ {[%emt 0:01:13]} Bxd7 {[%emt 0:00:10]} 11. Qd5 {[%emt 0:02:46]} Qc7 {[%emt 0:00:15]} 12. Bd2 {[%emt 0:03:34]} Bc5 {[%emt 0:00:38]} 13. Bd3 {[%emt 0:05:13]} O-O {[%emt 0:17:28]} 14. O-O {[%emt 0:02:21]} Rad8 {[%emt 0:31:26]} 15. Bc3 {[%emt 0:10:10]} Rfe8 {[%emt 0:07:06]} 16. Qb3 {[%emt 0:09:33]} Qc6 {[%emt 0:17:12]} 17. Kh1 {[%emt 0:06:38]} e4 {[%emt 0:03:57]} 18. Be2 {[%emt 0:00:24]} Qb6 {[%emt 0:01:52]} 19. Be1 {[%emt 0:05:50]} Bc6 {[%emt 0:01:59]} 20. Rd1 {[%emt 0:02:44]} Rxd1 {[%emt 0:04:46]} 21. Bxd1 {[%emt 0:00:06]} b4 {[%emt 0:05:27]} 22. Be2 {[%emt 0:01:18]} Bb5 {[%emt 0:01:24]} 23. Bc4 {[%emt 0:02:25]} Bxc4 {[%emt 0:00:08]} 24. Qxc4 {[%emt 0:00:06]} Qa6 {[%emt 0:00:08]} 25. Qxa6 {[%emt 0:02:04]} bxa6 {[%emt 0:00:01]} 26. g3 {[%emt 0:10:24]} Rd8 {[%emt 0:00:26]} 27. c3 {[%emt 0:00:48]} a5 {[%emt 0:00:58]} 28. cxb4 {[%emt 0:02:33]} axb4 {[%emt 0:00:09]} 29. Kg2 {[%emt 0:00:31]} Rd3 {[%emt 0:05:22]} 30. g4 {[%emt 0:00:50]} Kf8 {[%emt 0:00:44]} 31. f4 {[%emt 0:00:32]} g6 {[%emt 0:02:11]} 32. f5 {[%emt 0:00:16]} Ke7 {[%emt 0:00:31]} 33. fxg6 {[%emt 0:00:21]} fxg6 {[%emt 0:00:04]} 34. Rf4 {[%emt 0:00:35]} Re3 {[%emt 0:00:25]} 35. Bf2 {[%emt 0:00:39]} Re2 {[%emt 0:00:10]} 36. Kf1 {[%emt 0:00:14]} Bd6 {[%emt 0:01:01]} 37. Kxe2 {[%emt 0:00:52]} Bxf4 {[%emt 0:00:02]} 38. h3 {[%emt 0:00:29]} Ke6 {[%emt 0:01:23]} 39. b3 {[%emt 0:00:30]} Bd6 {[%emt 0:00:29]} 40. Bd4 {[%emt 0:00:00]} h5 {[%emt 0:00:00]} 1/2-1/2

[Event "XVI Calvia Amateur Open 2019"]
[Site "Calvia"]
[Date "2019.10.10"]
[Round "6.5"]
[White "Visser, Henk-Jan"]
[Black "De Boer, Bas"]
[Result "1/2-1/2"]
[ECO "A01"]
[WhiteElo "2184"]
[BlackElo "2142"]
[Annotator "NA"]
[PlyCount "44"]
[EventDate "2019.10.05"]
[EventType "swiss"]
[EventCountry "ESP"]
[SourceTitle "playchess.com"]
[Source "ChessBase"]
[SourceQuality "1"]
[TimeControl "40/5400+30:900+30"]

1. b3 {[%emt 0:00:00]} e5 {[%emt 0:00:08]} 2. Bb2 {[%emt 0:00:00]} Nc6 {[%emt 0:00:20]} 3. e3 {[%emt 0:00:00]} Nf6 {[%emt 0:00:51]} 4. Nf3 {[%emt 0:00:54]} e4 {[%emt 0:02:18]} 5. Nd4 {[%emt 0:00:27]} d5 {[%emt 0:04:05]} 6. c4 {[%emt 0:07:40]} Be7 {[%emt 0:10:37]} 7. cxd5 {[%emt 0:02:47]} Nb4 {[%emt 0:02:08]} 8. Nc3 {[%emt 0:08:09]} Nbxd5 {[%emt 0:08:00]} 9. Nxd5 {[%emt 0:36:16]} Nxd5 {[%emt 0:00:19]} 10. Qc2 {[%emt 0:01:24]} Nf6 {[%emt 0:02:57]} 11. Nb5 {[%emt 0:01:40]} c6 {[%emt 0:02:01]} 12. Bxf6 {[%emt 0:00:28]} gxf6 {[%emt 0:00:53]} 13. Nc3 {[%emt 0:03:04]} f5 {[%emt 0:00:06]} 14. d3 {[%emt 0:04:12]} Qa5 {[%emt 0:02:43]} 15. O-O-O {[%emt 0:12:52]} exd3 {[%emt 0:00:07]} 16. Bxd3 {[%emt 0:00:26]} Be6 {[%emt 0:00:07]} 17. Kb1 {[%emt 0:01:34]} O-O-O {[%emt 0:01:09]} 18. Na4 {[%emt 0:02:04]} Kb8 {[%emt 0:01:58]} 19. Bc4 {[%emt 0:03:59]} Rxd1+ {[%emt 0:07:01]} 20. Rxd1 {[%emt 0:00:23]} Rd8 {[%emt 0:00:10]} 21. Bxe6 {[%emt 0:03:53]} fxe6 {[%emt 0:00:26]} 22. Rxd8+ {[%emt 0:01:27]} Qxd8 {[%emt 0:00:13]} 1/2-1/2

[Event "XVI Calvia Amateur Open 2019"]
[Site "Calvia"]
[Date "2019.10.10"]
[Round "6.6"]
[White "Galicek, Stanislav"]
[Black "Gallego Bergada, Antoni"]
[Result "0-1"]
[ECO "E63"]
[WhiteElo "2142"]
[BlackElo "2177"]
[Annotator "ChessBase"]
[PlyCount "92"]
[EventDate "2019.10.05"]
[EventType "swiss"]
[EventCountry "ESP"]
[SourceTitle "playchess.com"]
[Source "ChessBase"]
[SourceQuality "1"]
[TimeControl "40/5400+30:900+30"]

1. d4 {[%emt 0:00:00]} g6 {[%emt 0:00:00]} 2. c4 {[%emt 0:00:00]} Bg7 {[%emt 0:00:00]} 3. g3 {[%emt 0:00:00]} Nf6 {[%emt 0:00:25]} 4. Bg2 {[%emt 0:00:13]} O-O {[%emt 0:01:10]} 5. Nc3 {[%emt 0:00:19]} d6 {[%emt 0:00:29]} 6. Nf3 {[%emt 0:00:15]} Nc6 {[%emt 0:00:13]} 7. O-O {[%emt 0:00:50]} a6 {[%emt 0:00:43]} 8. d5 {[%emt 0:02:14]} Na5 {[%emt 0:01:01]} 9. b3 {[%emt 0:00:34]} Rb8 {[%emt 0:05:12]} 10. Nd4 {[%emt 0:05:37]} Bd7 {[%emt 0:04:02]} 11. Bb2 {[%emt 0:08:15]} c5 {[%emt 0:05:43]} 12. dxc6 {[%emt 0:00:59]} Nxc6 {[%emt 0:00:31]} 13. e3 {[%emt 0:07:41]} Nxd4 {[%emt 0:06:10]} 14. exd4 {[%emt 0:23:32]} b5 {[%emt 0:00:47]} 15. c5 {[%emt 0:02:42]} b4 {[%emt 0:04:54]} 16. Ne2 {[%emt 0:04:47]} Bb5 {[%emt 0:02:50]} 17. Re1 {[%emt 0:01:19]} Rc8 {[%emt 0:07:38]} 18. Qc2 {[%emt 0:10:43]} e5 {[%emt 0:32:26]} 19. c6 {[%emt 0:06:58]} e4 {[%emt 0:00:20]} 20. Qd2 {[%emt 0:08:43]} Rxc6 {[%emt 0:11:59]} 21. d5 {[%emt 0:00:02]} Rc5 {[%emt 0:02:19]} 22. Bd4 {[%emt 0:01:11]} Rxd5 {[%emt 0:01:55]} 23. Nf4 {[%emt 0:03:13]} Rxd4 {[%emt 0:01:05]} 24. Qxd4 {[%emt 0:00:09]} Ng4 {[%emt 0:03:04]} 25. Qxb4 {[%emt 0:03:09]} Bxa1 {[%emt 0:00:09]} 26. Rxa1 {[%emt 0:00:09]} Qb6 {[%emt 0:01:16]} 27. Qd2 {[%emt 0:02:31]} e3 {[%emt 0:02:58]} 28. fxe3 {[%emt 0:00:02]} Qxe3+ {[%emt 0:00:06]} 29. Qxe3 {[%emt 0:00:11]} Nxe3 {[%emt 0:00:02]} 30. Bf3 {[%emt 0:01:33]} Kg7 {[%emt 0:02:22]} 31. Rc1 {[%emt 0:02:14]} g5 {[%emt 0:01:51]} 32. Nd5 {[%emt 0:02:16]} Nxd5 {[%emt 0:00:27]} 33. Bxd5 {[%emt 0:00:02]} Kf6 {[%emt 0:01:01]} 34. a4 {[%emt 0:00:35]} Bd3 {[%emt 0:00:43]} 35. Rc3 {[%emt 0:00:59]} Bf5 {[%emt 0:00:52]} 36. b4 {[%emt 0:02:07]} Rb8 {[%emt 0:00:34]} 37. Rc6 {[%emt 0:01:02]} Ke5 {[%emt 0:00:28]} 38. Bxf7 {[%emt 0:00:21]} Rxb4 {[%emt 0:00:31]} 39. Rxa6 {[%emt 0:00:16]} d5 {[%emt 0:00:35]} 40. a5 {[%emt 0:00:00]} Be4 {[%emt 0:00:00]} 41. Rb6 {[%emt 0:05:35]} Ra4 {[%emt 0:07:00]} 42. Rb5 {[%emt 0:02:43]} Kd4 {[%emt 0:00:44]} 43. Be8 {[%emt 0:03:59]} Ra1+ {[%emt 0:05:16]} 44. Kf2 {[%emt 0:00:02]} Ra2+ {[%emt 0:00:08]} 45. Kg1 {[%emt 0:00:38]} Ra3 {[%emt 0:03:41]} 46. Bd7 {[%emt 0:03:21]} Ke3 {[%emt 0:00:27]} 0-1

[Event "XVI Calvia Amateur Open 2019"]
[Site "Calvia"]
[Date "2019.10.11"]
[Round "7.1"]
[White "Gallego Bergada, Antoni"]
[Black "Voiteanu, Gabriel"]
[Result "1-0"]
[ECO "C20"]
[WhiteElo "2177"]
[BlackElo "2119"]
[Annotator "ChessBase"]
[PlyCount "83"]
[EventDate "2019.10.05"]
[EventType "swiss"]
[EventCountry "ESP"]
[SourceTitle "playchess.com"]
[Source "ChessBase"]
[SourceQuality "1"]
[TimeControl "40/5400+30:900+30"]

1. e4 {[%emt 0:00:00]} e5 {[%emt 0:00:00]} 2. Qh5 {[%emt 0:00:00]} Nc6 {[%emt 0:00:47]} 3. Bc4 {[%emt 0:00:00]} g6 {[%emt 0:01:25]} 4. Qf3 {[%emt 0:00:00]} Nf6 {[%emt 0:02:15]} 5. Ne2 {[%emt 0:00:00]} Bg7 {[%emt 0:08:38]} 6. d3 {[%emt 0:00:05]} d6 {[%emt 0:04:18]} 7. h3 {[%emt 0:00:29]} Na5 {[%emt 0:06:57]} 8. Nbc3 {[%emt 0:00:39]} Nxc4 {[%emt 0:03:10]} 9. dxc4 {[%emt 0:00:06]} Be6 {[%emt 0:04:34]} 10. b3 {[%emt 0:00:11]} Nd7 {[%emt 0:19:03]} 11. g4 {[%emt 0:05:11]} h5 {[%emt 0:03:48]} 12. g5 {[%emt 0:01:30]} Nc5 {[%emt 0:09:30]} 13. Be3 {[%emt 0:04:46]} c6 {[%emt 0:08:00]} 14. O-O-O {[%emt 0:21:09]} Qc7 {[%emt 0:00:58]} 15. Rd2 {[%emt 0:01:53]} O-O-O {[%emt 0:05:54]} 16. Rhd1 {[%emt 0:06:49]} b6 {[%emt 0:06:35]} 17. Kb1 {[%emt 0:03:06]} Nb7 {[%emt 0:02:01]} 18. Rd3 {[%emt 0:04:07]} h4 {[%emt 0:00:41]} 19. Qg2 {[%emt 0:06:36]} Nc5 {[%emt 0:00:58]} 20. R3d2 {[%emt 0:00:46]} Bf8 {[%emt 0:00:55]} 21. f4 {[%emt 0:03:36]} Bg7 {[%emt 0:01:03]} 22. Qf3 {[%emt 0:04:20]} exf4 {[%emt 0:01:03]} 23. Bxf4 {[%emt 0:00:57]} Be5 {[%emt 0:00:46]} 24. Nd4 {[%emt 0:15:26]} Bxf4 {[%emt 0:01:05]} 25. Qxf4 {[%emt 0:01:00]} d5 {[%emt 0:00:58]} 26. Qxc7+ {[%emt 0:01:13]} Kxc7 {[%emt 0:00:01]} 27. exd5 {[%emt 0:05:09]} cxd5 {[%emt 0:00:12]} 28. Nxe6+ {[%emt 0:00:51]} Nxe6 {[%emt 0:01:01]} 29. Nxd5+ {[%emt 0:01:37]} Kb8 {[%emt 0:01:13]} 30. Rf1 {[%emt 0:05:36]} Nxg5 {[%emt 0:00:58]} 31. Rg2 {[%emt 0:00:09]} Ne4 {[%emt 0:03:03]} 32. Rxf7 {[%emt 0:01:01]} g5 {[%emt 0:00:13]} 33. Nb4 {[%emt 0:03:21]} Rc8 {[%emt 0:01:11]} 34. Rg4 {[%emt 0:00:41]} Rhe8 {[%emt 0:00:27]} 35. Na6+ {[%emt 0:00:04]} Ka8 {[%emt 0:00:11]} 36. Nc7+ {[%emt 0:00:16]} Rxc7 {[%emt 0:01:09]} 37. Rxc7 {[%emt 0:00:04]} Re5 {[%emt 0:00:49]} 38. Rf7 {[%emt 0:01:37]} Nc3+ {[%emt 0:00:44]} 39. Kb2 {[%emt 0:00:52]} Ne2 {[%emt 0:01:02]} 40. Rg7 {[%emt 0:00:00]} Re3 {[%emt 0:00:00]} 41. R4xg5 {[%emt 0:01:47]} Rg3 {[%emt 0:04:00]} 42. Rxg3 {[%emt 0:00:23]} 1-0